bitfinex-derivatives/quotes_ETHF0:USTF0_20250918
["timestamp","ask_amount","ask_price","bid_price","bid_amount"]
[1758215807671,0.1189,4620.5,4620.4,0.0216]
[1758215807875,0.8413,4620.5,4620.4,0.217]
[1758215808067,0.8413,4620.5,4620.4,0.1954]
[1758215809281,0.8413,4620.5,4620.4,0.4068]
[1758215809480,0.8413,4620.5,4620.4,0.7009]
[1758215811982,0.3113,4620.9,4620.5,0.4187]
[1758215812185,0.3113,4621.4,4620.9,0.2941]
[1758215812378,0.4111,4621.3,4621.2,0.1954]
[1758215812783,0.4111,4621.3,4620.5,0.1246]
[1758215812784,0.4111,4620.7,4620.6,0.4895]
[1758215812987,0.7224,4620.7,4620.6,0.4895]
[1758215813485,0.7224,4620.7,4620.6,0.7009]
[1758215813785,0.3113,4621.0,4620.7,0.2941]
[1758215814080,0.5065,4621.0,4620.9,0.1945]
[1758215814283,0.74047296,4621.0,4620.9,0.7056]
[1758215814487,0.23397296,4621.0,4620.9,0.7056]
[1758215814985,0.1189,4623.0,4621.9,0.1945]
[1758215815189,0.5063,4622.0,4621.9,0.7056]
[1758215815787,0.7094,4622.0,4621.9,0.7056]
[1758215815990,0.8305,4622.0,4621.9,0.3971]
[1758215816189,0.8305,4622.0,4621.9,0.7056]
[1758215816491,0.7094,4622.0,4621.9,0.7056]
[1758215817389,0.5063,4622.0,4621.9,0.7056]
[1758215817791,0.8305,4622.0,4621.9,0.1945]
[1758215817979,0.8305,4622.0,4621.9,0.7056]
[1758215818891,0.8305,4622.0,4621.4,0.3085]
[1758215819089,0.1211,4622.0,4621.4,0.7056]
[1758215819295,0.5063,4622.4,4622.3,0.7056]
[1758215820995,0.7094,4622.4,4621.9,0.3085]
[1758215821191,0.7094,4622.4,4622.3,0.1945]
[1758215821593,0.7094,4622.4,4622.3,0.7056]
[1758215822192,0.5063,4622.4,4622.3,0.7056]
[1758215823496,0.7094,4622.4,4622.3,0.7056]
[1758215824699,0.22,4623.6,4622.5,0.1239]
[1758215824893,0.22,4623.6,4622.6,0.3085]
[1758215826494,0.1952,4622.7,4622.6,0.503]
[1758215826699,0.406,4622.7,4622.6,0.694]
[1758215826999,0.6857,4622.7,4622.6,0.694]
[1758215827199,0.406,4622.7,4622.6,0.694]
[1758215829003,0.2797,4623.1,4622.6,0.3855]
[1758215829198,0.22813159,4623.0,4622.7,0.3091]
[1758215829394,0.2051,4622.8,4622.7,0.7108]
[1758215830701,0.4159,4622.8,4622.7,0.7108]
[1758215830896,0.6956,4622.8,4622.7,0.7108]
[1758215831098,0.4159,4622.6,4622.0,0.1209]
[1758215831302,0.2051,4622.2,4622.1,0.7108]
[1758215833101,4.91195,4622.2,4621.6,0.3091]
[1758215833300,0.2051,4621.1,4621.0,0.8289]
[1758215833507,0.2797,4621.6,4621.0,0.5198]
[1758215833802,0.6956,4621.6,4621.5,0.6368]
[1758215834302,41.0805,4622.5,4621.6,0.3091]
[1758215834303,0.4997,4622.5,4621.6,0.3091]
[1758215834604,0.92221384,4622.4,4622.3,0.2107]
[1758215834798,0.2797,4622.3,4621.5,0.117]
[1758215835002,0.92221384,4622.2,4622.1,0.3307]
[1758215835194,0.92221384,4622.2,4622.1,0.0216]
[1758215835405,5.13856384,4622.2,4622.1,0.0216]
[1758215835803,4.92221384,4622.2,4622.1,0.0216]
[1758215837703,5.14221384,4622.2,4622.1,0.0216]
[1758215838409,4.86251384,4622.2,4621.5,0.117]
[1758215838704,0.2051,4621.7,4621.6,0.7108]
[1758215840103,0.2051,4622.1,4622.0,0.117]
[1758215840307,0.22674832,4622.1,4622.0,0.5187]
[1758215840500,0.4159,4622.1,4622.0,0.5187]
[1758215840900,0.2051,4622.1,4622.0,0.8278]
[1758215842302,40.8,4624.4,4622.0,0.5187]
[1758215842499,0.6956,4623.0,4622.5,0.117]
[1758215842700,0.6956,4622.7,4622.6,0.3091]
[1758215842897,1.14244671,4622.7,4622.6,0.3091]
[1758215843802,1.14244671,4622.7,4622.0,0.117]
[1758215844105,1.14244671,4622.7,4622.1,0.5198]
[1758215844106,0.6956,4622.2,4622.1,0.5198]
[1758215844305,0.4159,4622.2,4622.1,0.7108]
[1758215844501,0.0605,4625.0,4622.1,0.4017]
[1758215844708,0.2051,4622.3,4622.2,0.7108]
[1758215845211,0.2051,4622.6,4622.5,0.117]
[1758215845403,0.43205311,4622.6,4622.5,0.8278]
[1758215846806,0.22695311,4622.6,4622.5,0.8278]
[1758215847106,0.9156,4623.3,4623.2,0.5198]
[1758215847308,1.14252861,4623.3,4623.2,0.5198]
[1758215848803,0.22692861,4623.3,4623.2,0.7108]
[1758215849005,0.025,4624.3,4623.3,0.3091]
[1758215849200,0.4159,4624.3,4624.2,0.2107]
[1758215849406,0.9156,4624.3,4624.2,0.5198]
[1758215849606,0.6956,4624.3,4624.2,0.5198]
[1758215849810,0.22,4624.3,4624.2,0.7108]
[1758215850010,0.4251,4624.3,4624.2,0.7108]
[1758215850310,0.9156,4624.3,4624.2,0.7108]
[1758215850506,0.22,4624.3,4624.2,0.7108]
[1758215850707,0.2797,4624.9,4624.3,0.3091]
[1758215851110,0.2051,4624.4,4624.3,0.7108]
[1758215852811,0.4159,4624.4,4624.3,0.7108]
[1758215853008,0.6956,4624.4,4624.3,0.7108]
[1758215853611,0.4159,4624.4,4624.3,0.7108]
[1758215854110,0.6956,4624.4,4624.3,0.5198]
[1758215854809,0.4159,4624.4,4624.3,0.7108]
[1758215857412,0.2051,4624.4,4624.3,0.7108]
[1758215857815,0.4057,4624.4,4624.3,0.7108]
[1758215858012,0.6859,4624.4,4624.3,0.7108]
[1758215858313,0.4057,4624.4,4624.3,0.7108]
[1758215858514,0.2088,4624.4,4624.3,0.7108]
[1758215859708,0.3022,4626.3,4624.5,0.1264]
[1758215859910,0.9316,4626.3,4626.2,0.2004]
[1758215860108,0.6514,4626.3,4626.2,0.5061]
[1758215860410,0.9316,4626.3,4626.2,0.5061]
[1758215860612,0.6514,4626.3,4626.2,0.7131]
[1758215860812,0.4508,4626.3,4626.2,0.7131]
[1758215861012,0.67365281,4626.3,4626.2,0.7131]
[1758215861212,0.65425281,4626.3,4626.2,0.7131]
[1758215861515,0.24485281,4626.3,4626.2,0.7131]
[1758215862020,0.022,4626.3,4626.2,0.7131]
[1758215862913,0.4314,4626.3,4626.2,0.7131]
[1758215863321,0.2308,4626.3,4626.2,0.7131]
[1758215864019,0.022,4626.3,4626.2,0.7131]
[1758215865421,0.2308,4626.3,4626.2,0.7131]
[1758215866317,0.4314,4626.3,4626.2,0.7131]
[1758215866523,0.7116,4626.3,4626.2,0.7131]
[1758215866716,0.7116,4626.3,4626.2,0.3057]
[1758215867426,0.7116,4626.3,4626.0,0.0216]
[1758215867621,0.2185276,4626.2,4626.0,0.0216]
[1758215867814,0.7116,4626.3,4626.0,0.0216]
[1758215868018,0.6896,4626.1,4626.0,0.0216]
[1758215868223,0.90816645,4626.1,4626.0,0.0216]
[1758215869220,4.90816645,4626.1,4626.0,0.0216]
[1758215870225,0.4094,4625.2,4625.1,0.7131]
[1758215870720,0.6896,4625.2,4624.5,0.1264]
[1758215871018,0.6896,4625.2,4624.6,0.3057]
[1758215871624,0.6896,4625.2,4624.5,0.1264]
[1758215871826,0.6896,4625.2,4624.6,0.3057]
[1758215872227,0.4094,4624.7,4624.6,0.5061]
[1758215872526,0.4094,4624.7,4624.6,0.7131]
[1758215872723,0.6896,4624.7,4624.6,0.7131]
[1758215872922,0.4094,4624.7,4624.6,0.7131]
[1758215873421,0.2802,4625.1,4624.7,0.3149]
[1758215873626,0.28,4625.4,4624.9,0.195]
[1758215873827,0.2115,4625.0,4624.9,0.3865]
[1758215874016,0.2115,4625.0,4624.9,0.7014]
[1758215874221,0.4027,4625.0,4624.9,0.7014]
[1758215876016,0.4027,4624.6,4624.5,0.8278]
[1758215876626,0.047,4625.3,4624.6,0.3149]
[1758215876825,0.2115,4624.7,4624.6,0.7014]
[1758215877628,0.047,4625.3,4624.5,0.1205]
[1758215877822,0.21950694,4625.2,4624.5,0.1205]
[1758215878024,35.25550694,4625.1,4624.5,0.1205]
[1758215878228,0.21950694,4625.0,4624.5,0.1205]
[1758215879031,4.21623,4624.9,4624.5,0.1205]
[1758215879327,4.21623,4624.9,4624.0,0.0216]
[1758215879328,0.21950694,4624.8,4624.0,0.0216]
[1758215879532,0.43574694,4624.8,4624.0,0.0216]
[1758215879830,0.43574694,4624.7,4624.0,0.0216]
[1758215880031,0.43950694,4624.6,4624.0,0.0216]
[1758215880218,0.21950694,4624.5,4624.0,0.0216]
[1758215880421,0.43575694,4624.5,4624.0,0.0216]
[1758215880621,0.21950694,4624.4,4624.0,0.0216]
[1758215881129,41.01950694,4624.3,4624.0,0.0216]
[1758215881329,0.21950694,4624.2,4621.6,0.38922]
[1758215881526,0.21950694,4624.2,4621.8,0.38921]
[1758215881721,0.21950694,4624.2,4621.7,0.21631]
[1758215882125,0.22,4624.1,4621.8,0.60552]
[1758215882327,0.21950694,4624.0,4621.4,0.60555999]
[1758215882525,0.21950694,4624.0,4620.7,0.97326]
[1758215882526,0.21950694,4624.0,4621.5,0.38923]
[1758215883120,0.21950694,4624.0,4621.2,0.22]
[1758215883121,0.21950694,4624.0,4621.6,0.38922]
[1758215883334,0.21950694,4624.0,4621.8,0.38921]
[1758215883630,0.21950694,4624.0,4621.7,0.0077]
[1758215883822,0.43950694,4623.9,4621.9,0.3892]
[1758215884028,0.21950694,4623.8,4621.9,0.3892]
[1758215884231,0.21950694,4623.7,4621.9,0.3892]
[1758215884433,0.21950694,4623.6,4621.9,0.3892]
[1758215884622,0.22,4623.9,4621.9,0.3892]
[1758215884829,0.21935106,4623.8,4621.9,0.3892]
[1758215885026,0.21935106,4623.7,4621.9,0.3892]
[1758215885226,0.21935106,4623.6,4622.0,0.38919]
[1758215885426,0.22,4623.9,4621.7,0.39691]
[1758215885626,0.21928768,4623.8,4621.7,0.39691]
[1758215885832,0.21928768,4623.7,4621.7,0.39691]
[1758215886031,0.21928768,4623.6,4621.7,0.0077]
[1758215886223,0.21928768,4623.5,4621.7,0.0077]
[1758215886422,0.22,4623.9,4621.7,0.0077]
[1758215886628,0.2192343,4623.8,4621.7,0.0077]
[1758215886830,0.2192343,4623.7,4621.7,0.0077]
[1758215887129,0.2192343,4623.6,4621.7,0.0077]
[1758215887433,0.2192343,4623.5,4621.7,0.0077]
[1758215887626,0.2192343,4623.4,4621.7,0.0077]
[1758215887827,0.4392343,4623.3,4621.7,0.0077]
[1758215888122,0.2192343,4623.2,4621.7,0.0077]
[1758215888326,0.2192343,4623.1,4621.7,0.0077]
[1758215888528,0.22,4623.3,4621.7,0.0077]
[1758215888825,0.21901349,4623.2,4621.7,0.0077]
[1758215889031,0.21901349,4623.1,4621.7,0.0077]
[1758215889329,0.22,4623.3,4621.7,0.0077]
[1758215889530,0.21892,4623.2,4621.7,0.0077]
[1758215889732,0.21892,4623.1,4621.7,0.0077]
[1758215890032,0.22,4623.3,4621.7,0.0077]
[1758215890735,0.22,4623.3,4620.9,0.22]
[1758215890933,0.22,4623.3,4621.4,0.38924]
[1758215891233,0.22,4623.3,4621.2,0.38926]
[1758215891830,0.22,4623.3,4621.3,0.60559]
[1758215892034,0.22,4623.3,4621.3,0.38925]
[1758215892733,0.22,4623.3,4620.9,0.22]
[1758215893033,0.22,4623.3,4621.4,0.38924]
[1758215893235,0.22,4623.3,4621.0,0.21635]
[1758215893422,0.22,4623.3,4621.1,0.21635]
[1758215893627,0.22,4623.3,4621.0,0.21635]
[1758215893932,0.22,4623.3,4621.4,0.38924]
[1758215894234,0.21776159,4623.2,4621.4,0.38924]
[1758215894430,0.22,4623.3,4621.4,0.38924]
[1758215894727,0.21776159,4623.2,4621.4,0.38924]
[1758215894929,0.22,4623.3,4621.2,0.38926]
[1758215895122,0.22,4623.3,4621.3,0.38925]
[1758215895328,0.21785467,4623.2,4621.3,0.38925]
[1758215895533,0.22,4623.3,4621.3,0.38925]
[1758215895729,0.21785467,4623.2,4621.1,0.39787]
[1758215895931,0.22,4623.3,4621.2,0.38926]
[1758215896132,0.21785467,4623.2,4621.2,0.38926]
[1758215896427,0.21785467,4623.1,4621.2,0.38926]
[1758215896621,0.22,4623.3,4621.2,0.38926]
[1758215896828,0.21797511,4623.2,4621.2,0.38926]
[1758215897033,0.21797511,4623.1,4621.2,0.38926]
[1758215897240,0.21809496,4623.0,4621.2,0.38926]
[1758215897440,0.22,4623.3,4621.1,0.0086]
[1758215897731,0.21809548,4623.2,4621.1,0.0086]
[1758215897933,0.21809548,4623.1,4621.1,0.0086]
[1758215898132,0.21809548,4623.0,4621.1,0.0086]
[1758215898342,41.01809548,4622.9,4621.1,0.0086]
[1758215898536,0.21809548,4622.8,4621.1,0.0086]
[1758215899135,0.43445549,4622.8,4621.1,0.0086]
[1758215899333,0.43445549,4622.7,4621.1,0.0086]
[1758215899536,0.21809548,4622.6,4621.1,0.0086]
[1758215899730,0.43809548,4622.5,4621.1,0.0086]
[1758215899929,0.21809548,4622.4,4621.1,0.0086]
[1758215905943,0.21809548,4622.4,4620.3,0.38933]
[1758215906442,0.21809548,4622.4,4620.4,0.21639]
[1758215906644,0.21809548,4622.4,4620.2,0.38935]
[1758215906942,0.21809548,4622.4,4620.3,0.21639]
[1758215907243,0.21809548,4622.4,4620.1,0.38935]
[1758215907638,0.21809548,4622.4,4620.2,0.21639]
[1758215908039,0.21809548,4622.4,4620.3,0.21639]
[1758215908234,0.21809548,4622.4,4619.9,0.083]
[1758215908235,0.43448548,4622.4,4619.9,0.083]
[1758215908436,0.21809548,4622.3,4619.9,0.38937]
[1758215908638,0.21809548,4622.3,4619.2,0.97357]
[1758215908639,0.21809548,4622.3,4620.0,0.60576]
[1758215908839,0.21809548,4622.3,4620.0,0.38936]
[1758215909040,0.21809548,4622.2,4619.9,0.38937]
[1758215909240,0.21809548,4622.1,4620.1,0.39565]
[1758215909440,0.21809548,4622.0,4620.2,0.38934]
[1758215909743,0.21809548,4621.9,4620.2,0.21639]
[1758215910043,0.21809548,4621.8,4620.1,0.39565]
[1758215910245,0.24709548,4621.7,4620.1,0.0063]
[1758215910542,0.21809548,4621.6,4620.2,0.21639]
[1758215910743,0.21809548,4621.6,4620.2,0.38934]
[1758215910944,0.21809548,4621.6,4620.1,0.39565]
[1758215911137,0.21809548,4621.6,4620.1,0.61206]
[1758215911546,0.21809548,4621.6,4620.1,0.22271]
[1758215911746,0.21809548,4621.6,4620.1,0.0063]
[1758215914348,0.21809548,4621.6,4620.1,0.39566]
[1758215914948,0.21809548,4621.6,4620.1,0.0063]
[1758215915851,0.21809548,4621.5,4620.1,0.0063]
[1758215916150,0.21809548,4621.4,4620.1,0.0063]
[1758215916448,0.21809548,4621.3,4620.1,0.0063]
[1758215916643,0.21809548,4621.2,4620.1,0.0063]
[1758215916838,0.21809548,4621.1,4620.1,0.0063]
[1758215917045,0.21809548,4621.0,4620.1,0.0063]
[1758215917344,0.21809548,4620.9,4620.1,0.0063]
[1758215917545,0.21809548,4620.8,4620.1,0.0063]
[1758215917745,0.21809548,4620.7,4620.1,0.0063]
[1758215917947,0.21809548,4620.6,4620.1,0.0063]
[1758215918147,0.21641,4621.5,4620.1,0.0063]
[1758215918349,0.21887678,4621.4,4620.1,0.0063]
[1758215918546,0.21887678,4621.3,4620.1,0.0063]
[1758215918744,0.21887678,4621.2,4620.1,0.0063]
[1758215918947,0.21887678,4621.1,4620.1,0.0063]
[1758215919143,0.43887678,4621.0,4620.1,0.0063]
[1758215919447,0.21887678,4620.9,4620.1,0.0063]
[1758215919641,0.21887678,4620.8,4620.1,0.0063]
[1758215919843,0.21887678,4620.7,4620.1,0.0063]
[1758215920043,0.21887678,4620.6,4620.1,0.0063]
[1758215920253,0.22,4621.0,4620.1,0.0063]
[1758215920447,0.21884738,4620.9,4620.1,0.0063]
[1758215920648,0.21884738,4620.8,4620.1,0.0063]
[1758215920854,0.22,4621.5,4620.1,0.0063]
[1758215921048,0.21890759,4621.4,4620.1,0.0063]
[1758215921351,0.21890759,4621.3,4620.1,0.0063]
[1758215921554,0.21890759,4621.2,4620.1,0.0063]
[1758215921747,0.21890759,4621.1,4620.1,0.0063]
[1758215921947,0.21896482,4621.0,4620.1,0.0063]
[1758215922246,0.21896482,4620.9,4620.1,0.0063]
[1758215922451,0.21896482,4620.8,4620.1,0.0063]
[1758215922647,0.026,4621.7,4620.1,0.0063]
[1758215922848,0.21898122,4621.6,4620.1,0.22269]
[1758215923049,0.21898122,4621.5,4620.1,0.22269]
[1758215923249,0.21898122,4621.4,4620.2,0.38934]
[1758215923552,0.21898122,4621.3,4620.2,0.60573]
[1758215923754,0.21898122,4621.2,4620.2,0.38934]
[1758215924053,0.21898122,4621.1,4620.3,0.38934]
[1758215924251,0.21898122,4621.0,4620.3,0.38934]
[1758215924453,0.22,4621.8,4620.3,0.38934]
[1758215924652,0.22066775,4621.7,4620.2,0.38935]
[1758215924954,0.22066775,4621.6,4620.2,0.60576]
[1758215925251,0.22066775,4621.5,4620.1,0.0063]
[1758215925451,0.22066775,4621.4,4620.2,0.21641]
[1758215925648,0.22066775,4621.3,4620.2,0.21641]
[1758215925849,0.22066775,4621.2,4620.1,0.0063]
[1758215926046,0.22066775,4621.1,4620.2,0.21641]
[1758215926245,0.22066775,4621.0,4620.2,0.21641]
[1758215926447,0.22,4621.8,4620.1,0.39566]
[1758215926654,0.22073014,4621.7,4620.2,0.21641]
[1758215926853,0.22073014,4621.6,4620.1,0.22271]
[1758215927152,0.22073014,4621.5,4620.1,0.22271]
[1758215927341,0.22073014,4621.4,4620.1,0.22271]
[1758215927543,0.22073014,4621.3,4620.1,0.22271]
[1758215927748,0.22073014,4621.2,4620.1,0.22271]
[1758215927953,0.22073014,4621.1,4620.1,0.22271]
[1758215928154,0.22087054,4621.0,4620.1,0.22271]
[1758215928355,0.22,4621.8,4620.1,0.22271]
[1758215928552,0.22087144,4621.7,4620.1,0.22271]
[1758215928751,0.22,4621.8,4620.1,0.22271]
[1758215928752,0.22087144,4621.6,4620.1,0.61206]
[1758215928956,0.22087144,4621.5,4620.1,0.61207]
[1758215929156,0.22087144,4621.4,4620.1,0.22271]
[1758215929453,0.22087144,4621.3,4620.1,0.22271]
[1758215929653,0.22087144,4621.2,4620.1,0.22271]
[1758215929954,0.22088824,4621.1,4620.1,0.22271]
[1758215930154,0.22,4621.8,4620.1,0.22271]
[1758215930356,0.22089171,4621.7,4620.1,0.22271]
[1758215930654,0.22089171,4621.6,4620.2,0.38935]
[1758215930855,0.22089171,4621.5,4620.1,0.39566]
[1758215931054,0.22089171,4621.4,4620.1,0.39566]
[1758215931250,0.22089171,4621.3,4620.1,0.39566]
[1758215931552,0.22089171,4621.2,4620.1,0.39566]
[1758215931754,0.22089171,4621.1,4620.2,0.38935]
[1758215931957,0.22,4621.8,4620.1,0.0063]
[1758215932258,0.22089456,4621.7,4620.1,0.39566]
[1758215932555,0.22089456,4621.6,4620.1,0.39566]
[1758215932751,0.22089456,4621.5,4620.2,0.38935]
[1758215932952,0.22089456,4621.4,4620.1,0.39566]
[1758215933251,35.063,4622.7,4620.1,0.0063]
[1758215933252,0.22089456,4621.3,4620.1,0.0063]
[1758215933555,35.063,4622.7,4621.3,0.38926]
[1758215933754,35.063,4622.7,4621.0,0.38928]
[1758215933755,0.22098532,4622.6,4621.0,0.38928]
[1758215933953,0.22098532,4622.5,4621.0,0.38928]
[1758215934155,0.22098532,4622.4,4621.1,0.21636]
[1758215934356,0.22098532,4622.3,4620.0,0.97341]
[1758215934553,0.22098532,4622.2,4620.1,0.21639]
[1758215934752,0.22098532,4622.1,4620.8,0.3893]
[1758215934954,0.22098532,4622.0,4620.6,0.38931]
[1758215935155,35.063,4622.7,4620.7,0.38931]
[1758215935355,0.4372261,4622.6,4620.7,0.38931]
[1758215935556,0.2208361,4622.5,4620.6,0.38932]
[1758215935752,0.2208361,4622.4,4620.7,0.38931]
[1758215935948,0.4408361,4622.3,4620.7,0.38931]
[1758215936151,0.2208361,4622.2,4620.7,0.38931]
[1758215936358,0.2208361,4622.2,4619.2,9.73589]
[1758215936654,0.2208361,4622.1,4620.6,0.97328]
[1758215936962,0.013,4622.6,4621.3,0.38925]
[1758215937154,0.2207934,4622.5,4621.1,0.38927]
[1758215937453,0.2207934,4622.4,4621.1,0.38927]
[1758215937759,0.2207934,4622.3,4621.2,0.0216]
[1758215938058,0.2207934,4622.2,4621.2,0.0216]
[1758215938258,35.063,4622.7,4621.2,0.0216]
[1758215938559,0.44071839,4622.6,4621.2,0.0216]
[1758215938759,0.22071839,4622.5,4621.2,0.0216]
[1758215940260,0.22071839,4622.5,4621.3,0.38926]
[1758215940459,0.22,4622.7,4621.3,0.38926]
[1758215940761,0.22068345,4622.6,4621.2,0.0216]
[1758215940953,0.22068345,4622.5,4621.2,0.0216]
[1758215941259,0.3174,4622.9,4621.5,0.4171]
[1758215941467,0.3174,4622.9,4622.0,0.1166]
[1758215941468,0.3174,4622.7,4622.0,0.1166]
[1758215941760,0.7295,4622.2,4622.1,0.7124]
[1758215942056,0.4121,4621.6,4621.5,0.3005]
[1758215942359,0.7295,4621.6,4621.5,0.5114]
[1758215943061,0.4121,4621.6,4621.4,3.2078]
[1758215943262,0.8545,4621.5,4621.2,0.0216]
[1758215946758,0.22055123,4621.4,4621.2,0.0216]
[1758215946967,1.14704234,4621.3,4621.2,0.0216]
[1758215947161,0.5313,4620.5,4620.4,3.2078]
[1758215947367,0.831,4620.5,4620.4,3.2078]
[1758215948156,0.831,4620.5,4620.0,0.3132]
[1758215948362,0.2997,4620.4,4619.9,3.2078]
[1758215948557,0.831,4620.0,4619.9,3.2078]
[1758215948963,1.05152254,4620.0,4619.9,3.2078]
[1758215949366,0.831,4620.0,4619.9,3.2078]
[1758215950062,1.05144617,4620.0,4619.6,0.3348]
[1758215950369,0.831,4620.0,4619.6,0.3348]
[1758215951062,0.1968,4619.7,4619.6,0.0216]
[1758215951266,0.92687244,4619.7,4619.6,0.0216]
[1758215952574,0.2997,4619.6,4618.9,3.2078]
[1758215952775,0.7065,4619.0,4618.9,3.9373]
[1758215953264,0.1968,4619.0,4618.9,3.9373]
[1758215953669,0.4068,4619.0,4618.9,3.9373]
[1758215954576,0.7065,4619.0,4618.9,3.9373]
[1758215955576,0.831,4619.0,4618.9,3.2078]
[1758215956178,0.831,4619.0,4618.9,3.7297]
[1758215956378,0.7065,4619.0,4618.9,3.7297]
[1758215957981,0.7065,4619.0,4618.9,3.9373]
[1758215958485,0.4068,4619.0,4618.9,3.9373]
[1758215958988,0.7065,4619.0,4618.9,3.9373]
[1758215959373,0.7065,4619.0,4618.9,3.7297]
[1758215959580,0.7065,4619.0,4618.9,3.9373]
[1758215960385,0.1968,4619.4,4619.3,0.4163]
[1758215960581,3.2078,4619.9,4619.5,0.5415]
[1758215960789,0.22,4619.9,4619.5,0.5415]
[1758215961178,0.1968,4619.9,4619.8,0.4163]
[1758215961488,3.2078,4620.4,4620.3,0.7295]
[1758215961681,3.4046,4620.4,4620.3,0.7295]
[1758215961880,3.2078,4620.4,4620.3,0.7295]
[1758215962285,0.1968,4621.0,4620.9,0.7295]
[1758215962583,0.7065,4621.0,4620.9,0.7295]
[1758215963086,0.2997,4620.9,4620.6,0.3132]
[1758215963387,0.7065,4620.2,4620.1,0.3132]
[1758215963689,0.7065,4620.1,4620.0,3.7297]
[1758215964091,0.7065,4620.1,4620.0,3.9373]
[1758215965285,0.7065,4620.1,4620.0,4.0625]
[1758215965490,0.2997,4620.6,4620.3,0.3132]
[1758215965686,0.22,4620.5,4620.3,0.3132]
[1758215965989,0.22,4620.5,4620.4,0.7295]
[1758215966288,3.2078,4620.9,4620.4,0.7295]
[1758215966486,0.4168,4620.8,4620.7,0.7295]
[1758215966789,0.9265,4620.8,4620.0,3.333]
[1758215966993,0.4068,4620.2,4620.1,0.7295]
[1758215967189,0.7065,4620.2,4620.1,0.7295]
[1758215967691,0.1968,4620.2,4620.1,0.7295]
[1758215968084,0.1968,4620.2,4620.0,0.1252]
[1758215968085,0.1968,4620.6,4620.5,0.8547]
[1758215968282,3.2078,4620.9,4620.7,0.4163]
[1758215968492,0.1968,4621.1,4621.0,0.8547]
[1758215968696,0.9265,4621.1,4621.0,0.8547]
[1758215968890,0.22,4621.2,4621.1,0.3132]
[1758215969092,0.22,4621.2,4621.1,0.7295]
[1758215969292,3.2078,4621.4,4621.2,0.3132]
[1758215969493,3.4278,4621.4,4621.3,0.7295]
[1758215969695,3.2078,4621.4,4621.3,0.7295]
[1758215970295,3.4046,4621.4,4621.3,0.7295]
[1758215970497,3.2078,4621.4,4621.3,0.7295]
[1758215971294,3.4046,4621.4,4621.3,0.7295]
[1758215971695,0.1968,4621.4,4621.3,0.7295]
[1758215974201,0.4168,4621.4,4621.3,0.7295]
[1758215974799,0.1968,4621.4,4621.3,0.7295]
[1758215975498,0.1968,4621.4,4621.1,0.0216]
[1758215975499,3.928,4621.4,4621.1,0.0216]
[1758215975792,7.928,4621.4,4621.1,0.0216]
[1758215976403,4.14439,4621.4,4621.1,0.0216]
[1758215976599,0.7233,4621.2,4621.1,0.0216]
[1758215976794,0.9433,4621.2,4621.1,0.0216]
[1758215976994,0.9433,4621.2,4620.3,0.3082]
[1758215977801,0.4099,4620.4,4620.3,0.5066]
[1758215978001,0.9433,4620.4,4620.3,0.7064]
[1758215978202,0.9433,4620.4,4620.3,0.5066]
[1758215978501,0.9433,4620.4,4620.0,0.5066]
[1758215978502,0.7233,4620.1,4620.0,0.5066]
[1758215978698,0.7233,4620.1,4620.0,0.1984]
[1758215979004,0.7233,4620.1,4620.0,0.5066]
[1758215979199,0.4099,4620.1,4619.7,0.3082]
[1758215979399,0.7233,4619.9,4619.8,0.1984]
[1758215979798,0.7233,4619.9,4619.6,3.5376]
[1758215979999,0.3134,4619.8,4619.6,3.5376]
[1758215980196,0.5253,4619.8,4619.7,0.5066]
[1758215980498,0.7233,4619.8,4619.7,0.5066]
[1758215981996,0.7233,4619.8,4619.7,0.1984]
[1758215982201,0.7233,4619.8,4619.7,0.5066]
[1758215982590,0.7233,4619.8,4619.6,3.2294]
[1758215982795,0.7233,4619.7,4619.6,3.2294]
[1758215983098,0.7233,4619.7,4619.6,3.2078]
[1758215983701,0.7233,4619.7,4619.6,3.7144]
[1758215985101,0.7233,4619.7,4619.6,3.9142]
[1758215985598,0.7233,4619.7,4619.6,0.1984]
[1758215985900,0.4099,4619.2,4619.1,3.9142]
[1758215986097,0.198,4619.2,4619.1,3.9142]
[1758215986297,0.418,4619.5,4619.4,0.3982]
[1758215986499,0.418,4619.5,4619.4,0.7064]
[1758215987598,3.5212,4620.0,4619.4,0.3982]
[1758215987902,3.2078,4620.0,4619.9,0.7064]
[1758215988805,3.9311,4620.0,4619.9,0.7064]
[1758215989097,0.22,4620.1,4619.9,0.3982]
[1758215989301,3.2078,4620.5,4620.1,0.3082]
[1758215989503,3.2078,4621.0,4620.5,0.3082]
[1758215989703,0.22,4620.6,4620.5,0.8287]
[1758215990006,0.418,4620.6,4620.5,0.8287]
[1758215990801,0.9433,4620.6,4620.0,0.1223]
[1758215991001,0.3134,4620.4,4620.1,0.5066]
[1758215991306,0.7233,4620.2,4620.1,0.5066]
[1758215991508,0.9433,4620.2,4620.1,0.1984]
[1758215991700,0.4099,4619.8,4619.7,0.1984]
[1758215991904,0.7233,4619.8,4619.7,0.7064]
[1758215992908,0.7233,4619.8,4619.1,0.3082]
[1758215993110,0.6299,4619.7,4619.6,0.1984]
[1758215993410,0.9433,4619.7,4619.6,0.7106]
[1758215994504,0.9433,4619.7,4619.6,0.5012]
[1758215995012,0.418,4619.7,4619.6,0.7106]
[1758215995212,0.22,4619.8,4619.7,0.7071]
[1758215997614,0.9296,4619.8,4619.7,0.7071]
[1758215997810,0.9296,4619.8,4619.7,0.1949]
[1758215998010,0.9296,4619.8,4619.7,0.7071]
[1758215999810,0.6168,4619.8,4619.7,0.7071]
[1758216000015,0.4234,4619.8,4619.7,0.7071]
[1758216000317,0.3968,4620.4,4620.3,0.7071]